[Event "IV Elllobregat Open Chess Tmnt"]
[Site "Sant Boi de Llobregat, Spain"]
[Date "2023.12.01"]
[Round "2.30"]
[White "Lopez Martinez, Josep Manuel"]
[Black "Suyarov, Mukhammadzokhid"]
[Result "1/2-1/2"]
[TimeControl "90min/40moves + 15min/end + 30sec from move 1"]
[WhiteFideId "2212943"]
[BlackFideId "14210495"]
[WhiteElo "2474"]
[BlackElo "2359"]

1. c4 {[%clk 01:30:11]} {[%emt 00:00:48]} e5 {[%clk 01:30:19]} {[%emt
00:00:42]} 2. g3 {[%clk 01:30:01]} {[%emt 00:00:40]} c6 {[%clk 01:30:10]}
{[%emt 00:00:40]} 3. d4 {[%clk 01:28:20]} {[%emt 00:02:10]} e4 {[%clk
01:27:01]} {[%emt 00:03:39]} 4. a3 {[%clk 01:27:16]} {[%emt 00:01:35]} d5
{[%clk 01:25:31]} {[%emt 00:01:59]} 5. Nc3 {[%clk 01:27:20]} {[%emt 00:00:25]}
h6 {[%clk 01:22:13]} {[%emt 00:03:49]} 6. Bg2 {[%clk 01:14:38]} {[%emt
00:13:12]} Nf6 {[%clk 01:21:13]} {[%emt 00:01:31]} 7. f3 {[%clk 01:14:33]}
{[%emt 00:00:34]} exf3 {[%clk 01:19:33]} {[%emt 00:02:11]} 8. Nxf3 {[%clk
01:14:54]} {[%emt 00:00:07]} Be7 {[%clk 01:19:04]} {[%emt 00:00:59]} 9. O-O
{[%clk 01:10:59]} {[%emt 00:04:25]} O-O {[%clk 01:17:48]} {[%emt 00:01:46]} 10.
Ne5 {[%clk 01:10:43]} {[%emt 00:00:45]} Be6 {[%clk 01:13:38]} {[%emt 00:04:42]}
11. cxd5 {[%clk 00:59:01]} {[%emt 00:12:12]} cxd5 {[%clk 01:09:46]} {[%emt
00:04:22]} 12. Nd3 {[%clk 00:57:51]} {[%emt 00:01:39]} Bd6 {[%clk 00:58:52]}
{[%emt 00:11:20]} 13. Bf4 {[%clk 00:55:13]} {[%emt 00:03:12]} Nc6 {[%clk
00:52:19]} {[%emt 00:07:04]} 14. Bxd6 {[%clk 00:53:29]} {[%emt 00:02:14]} Qxd6
{[%clk 00:50:27]} {[%emt 00:02:23]} 15. Rxf6 {[%clk 00:53:40]} {[%emt
00:00:18]} gxf6 {[%clk 00:50:52]} {[%emt 00:00:06]} 16. e3 {[%clk 00:54:04]}
{[%emt 00:00:06]} Ne7 {[%clk 00:45:10]} {[%emt 00:06:12]} 17. Qh5 {[%clk
00:47:39]} {[%emt 00:06:54]} Kh7 {[%clk 00:42:16]} {[%emt 00:03:25]} 18. Rf1
{[%clk 00:43:30]} {[%emt 00:04:38]} f5 {[%clk 00:37:44]} {[%emt 00:05:02]} 19.
Nf4 {[%clk 00:39:13]} {[%emt 00:04:47]} Rg8 {[%clk 00:35:36]} {[%emt 00:02:38]}
20. Ncxd5 {[%clk 00:22:55]} {[%emt 00:16:47]} Rg5 {[%clk 00:31:36]} {[%emt
00:04:31]} 21. Qf3 {[%clk 00:22:12]} {[%emt 00:01:12]} Nxd5 {[%clk 00:30:35]}
{[%emt 00:01:32]} 22. Nxd5 {[%clk 00:22:36]} {[%emt 00:00:06]} Qxd5 {[%clk
00:30:48]} {[%emt 00:00:17]} 23. Qxd5 {[%clk 00:23:02]} {[%emt 00:00:04]} Bxd5
{[%clk 00:31:13]} {[%emt 00:00:05]} 24. Bxd5 {[%clk 00:23:27]} {[%emt
00:00:04]} Kg7 {[%clk 00:31:21]} {[%emt 00:00:22]} 25. Rc1 {[%clk 00:17:51]}
{[%emt 00:06:05]} f4 {[%clk 00:25:45]} {[%emt 00:06:07]} 26. e4 {[%clk
00:17:42]} {[%emt 00:00:38]} fxg3 {[%clk 00:22:24]} {[%emt 00:03:52]} 27. Rc7
{[%clk 00:16:21]} {[%emt 00:01:51]} Rf8 {[%clk 00:15:21]} {[%emt 00:07:33]} 28.
Rxb7 {[%clk 00:13:57]} {[%emt 00:02:54]} Rc8 {[%clk 00:15:23]} {[%emt
00:00:27]} 29. hxg3 {[%clk 00:13:22]} {[%emt 00:01:04]} Rxg3+ {[%clk 00:15:01]}
{[%emt 00:00:52]} 30. Kf2 {[%clk 00:13:16]} {[%emt 00:00:36]} Rd3 {[%clk
00:15:14]} {[%emt 00:00:18]} 31. Ke2 {[%clk 00:11:01]} {[%emt 00:02:45]} Rxd4
{[%clk 00:11:59]} {[%emt 00:03:45]} 32. Rxf7+ {[%clk 00:08:01]} {[%emt
00:03:28]} Kg6 {[%clk 00:11:18]} {[%emt 00:01:13]} 33. Rxa7 {[%clk 00:08:13]}
{[%emt 00:00:18]} Rc2+ {[%clk 00:05:49]} {[%emt 00:05:59]} 34. Ke3 {[%clk
00:08:31]} {[%emt 00:00:11]} Rd1 {[%clk 00:05:52]} {[%emt 00:00:29]} 35. b4
{[%clk 00:07:32]} {[%emt 00:01:28]} Kg5 {[%clk 00:05:21]} {[%emt 00:01:02]} 36.
Rg7+ {[%clk 00:03:06]} {[%emt 00:04:55]} Kf6 {[%clk 00:05:41]} {[%emt
00:00:10]} 37. Rf7+ {[%clk 00:03:14]} {[%emt 00:00:21]} Kg5 {[%clk 00:05:36]}
{[%emt 00:00:36]} 38. Rg7+ {[%clk 00:01:55]} {[%emt 00:01:48]} Kf6 {[%clk
00:05:59]} {[%emt 00:00:07]} 39. Rf7+ {[%clk 00:01:47]} {[%emt 00:00:38]} Kg5
{[%clk 00:06:10]} {[%emt 00:00:19]} 40. Rg7+ {[%clk 00:16:26]} {[%emt
00:00:51]} Kf6 {[%emt 00:01:35]} 1/2-1/2

[Event "IV Elllobregat Open Chess Tmnt"]
[Site "Sant Boi de Llobregat, Spain"]
[Date "2023.12.01"]
[Round "2.31"]
[White "Wong, Zhenyong Jayden"]
[Black "Gines Esteo, Pedro Antonio"]
[Result "0-1"]
[TimeControl "90min/40moves + 15min/end + 30sec from move 1"]
[WhiteFideId "5821975"]
[BlackFideId "32080190"]
[WhiteElo "2356"]
[BlackElo "2471"]

1. d4 {[%emt 00:00:02]} d5 {[%emt 00:08:39]} 2. c4 {[%emt 00:00:30]} c6 {[%emt
00:00:35]} 3. Nf3 {[%emt 00:00:35]} Nf6 {[%emt 00:00:17]} 4. Nc3 {[%emt
00:01:52]} dxc4 {[%emt 00:00:40]} 5. e4 {[%emt 00:03:55]} b5 {[%emt 00:00:37]}
6. Be2 {[%emt 00:00:24]} e6 {[%emt 00:16:16]} 7. O-O {[%emt 00:00:13]} Be7
{[%emt 00:00:50]} 8. a4 {[%emt 00:00:25]} Bb7 {[%emt 00:02:26]} 9. axb5 {[%emt
00:03:33]} cxb5 {[%emt 00:00:07]} 10. e5 {[%emt 00:00:14]} Nd5 {[%emt
00:00:21]} 11. Nxb5 {[%emt 00:01:02]} Nb6 {[%emt 00:15:06]} 12. Bg5 {[%emt
00:05:43]} O-O {[%emt 00:00:12]} 13. Nd6 {[%emt 00:09:28]} Bxf3 {[%emt
00:13:37]} 14. Bxe7 {[%emt 00:03:03]} Bxe2 {[%emt 00:00:10]} 15. Bxd8 {[%emt
00:00:06]} Bxd1 {[%emt 00:00:04]} 16. Bxb6 {[%emt 00:00:04]} Be2 {[%emt
00:00:46]} 17. Rfe1 {[%emt 00:20:58]} Bd3 {[%emt 00:01:11]} 18. Bxa7 {[%emt
00:16:00]} Nc6 {[%emt 00:01:41]} 19. Bc5 {[%emt 00:00:26]} Rfb8 {[%emt
00:02:42]} 20. f3 {[%emt 00:08:44]} Rxa1 {[%emt 00:21:45]} 21. Rxa1 {[%emt
00:00:01]} Rxb2 {[%emt 00:03:30]} 22. Rc1 {[%emt 00:00:55]} Nb4 {[%emt
00:05:43]} 23. Bxb4 {[%emt 00:03:55]} Rxb4 {[%emt 00:00:05]} 24. Kf2 {[%emt
00:01:52]} g5 {[%emt 00:03:31]} 25. Ra1 {[%emt 00:11:17]} Rb2+ {[%emt
00:00:25]} 26. Kg3 {[%emt 00:02:56]} c3 {[%emt 00:00:01]} 27. Ra8+ {[%emt
00:01:50]} Kg7 {[%emt 00:00:01]} 28. Ne8+ {[%emt 00:00:07]} Kh6 {[%emt
00:01:04]} 29. Nf6 {[%emt 00:03:45]} c2 {[%emt 00:00:58]} 30. Ng4+ {[%emt
00:01:03]} Kg7 {[%emt 00:00:13]} 31. Nf6 {[%emt 00:00:19]} Bf5 {[%emt
00:00:29]} 32. Rc8 {[%emt 00:00:26]} Rb1 {[%emt 00:01:06]} 0-1

[Event "IV Elllobregat Open Chess Tmnt"]
[Site "Sant Boi de Llobregat, Spain"]
[Date "2023.12.01"]
[Round "2.32"]
[White "Kaasen, Tor Fredrik"]
[Black "Bakhrillaev, Bakhrom"]
[Result "0-1"]
[TimeControl "90min/40moves + 15min/end + 30sec from move 1"]
[WhiteFideId "1516647"]
[BlackFideId "14212285"]
[WhiteElo "2471"]
[BlackElo "2332"]

1. e4 {[%emt 00:02:29]} e5 {[%emt 00:00:12]} 2. Nf3 {[%emt 00:00:24]} Nc6
{[%emt 00:00:18]} 3. Bb5 {[%emt 00:00:32]} a6 {[%emt 00:00:02]} 4. Ba4 {[%emt
00:00:20]} Nf6 {[%emt 00:00:04]} 5. O-O {[%emt 00:00:43]} d6 {[%emt 00:00:04]}
6. Re1 {[%emt 00:01:12]} Bd7 {[%emt 00:00:25]} 7. c4 {[%emt 00:00:33]} g6
{[%emt 00:01:42]} 8. Bxc6 {[%emt 00:02:22]} Bxc6 {[%emt 00:04:25]} 9. Nc3
{[%emt 00:00:15]} Bg7 {[%emt 00:01:18]} 10. d4 {[%emt 00:00:32]} exd4 {[%emt
00:04:16]} 11. Nxd4 {[%emt 00:01:15]} O-O {[%emt 00:00:23]} 12. f3 {[%emt
00:00:52]} Nd7 {[%emt 00:04:48]} 13. Be3 {[%emt 00:03:19]} Ne5 {[%emt
00:04:08]} 14. b3 {[%emt 00:04:05]} Bd7 {[%emt 00:05:07]} 15. Qd2 {[%emt
00:04:43]} Rb8 {[%emt 00:20:51]} 16. Bh6 {[%emt 00:06:32]} Bxh6 {[%emt
00:07:45]} 17. Qxh6 {[%emt 00:00:10]} b5 {[%emt 00:00:19]} 18. cxb5 {[%emt
00:04:14]} axb5 {[%emt 00:00:02]} 19. Qd2 {[%emt 00:01:41]} b4 {[%emt
00:03:21]} 20. Nd5 {[%emt 00:04:05]} c6 {[%emt 00:00:35]} 21. Ne3 {[%emt
00:01:51]} c5 {[%emt 00:04:24]} 22. Ne2 {[%emt 00:02:41]} Bb5 {[%emt 00:02:00]}
23. Red1 {[%emt 00:12:52]} Qg5 {[%emt 00:09:14]} 24. Kh1 {[%emt 00:01:34]} Nd3
{[%emt 00:03:39]} 25. Nc1 {[%emt 00:03:55]} Nf4 {[%emt 00:06:51]} 26. Nd5
{[%emt 00:13:24]} Qe5 {[%emt 00:00:02]} 27. Rb1 {[%emt 00:00:49]} Nxd5 {[%emt
00:00:55]} 28. Qxd5 {[%emt 00:00:11]} Rfd8 {[%emt 00:00:20]} 29. Qd2 {[%emt
00:07:09]} d5 {[%emt 00:02:10]} 30. exd5 {[%emt 00:02:29]} Rd6 {[%emt
00:00:36]} 31. Qb2 {[%emt 00:12:10]} Qe3 {[%emt 00:08:04]} 32. Qd2 {[%emt
00:01:57]} Qe5 {[%emt 00:01:03]} 33. Qb2 {[%emt 00:00:05]} Rxd5 {[%emt
00:03:13]} 34. Nd3 {[%emt 00:00:18]} Qxb2 {[%emt 00:03:14]} 35. Nxb2 {[%emt
00:00:04]} Rxd1+ {[%emt 00:01:01]} 36. Nxd1 {[%emt 00:02:02]} Re8 {[%emt
00:00:02]} 37. Nf2 {[%emt 00:01:13]} Re2 {[%emt 00:00:01]} 38. Kg1 {[%emt
00:02:37]} Rxa2 {[%emt 00:00:07]} 39. Rc1 {[%emt 00:00:03]} c4 {[%emt
00:01:39]} 40. bxc4 {[%emt 00:00:11]} Bxc4 {[%emt 00:00:02]} 41. Rxc4 {[%emt
00:00:59]} Ra1+ {[%emt 00:00:01]} 42. Nd1 {[%emt 00:00:05]} Rxd1+ {[%emt
00:00:40]} 43. Kf2 {[%emt 00:00:04]} Rd2+ {[%emt 00:00:06]} 44. Kg3 {[%emt
00:00:20]} b3 {[%emt 00:00:06]} 45. Rb4 {[%emt 00:03:49]} b2 {[%emt 00:00:46]}
46. f4 {[%emt 00:04:24]} Kf8 {[%emt 00:03:30]} 47. Rb7 {[%emt 00:00:27]} Ke8
{[%emt 00:00:13]} 48. Kf3 {[%emt 00:00:25]} Kd8 {[%emt 00:00:02]} 49. h4 {[%emt
00:00:53]} Kc8 {[%emt 00:00:12]} 50. Rb4 {[%emt 00:00:16]} Kc7 {[%emt
00:04:36]} 51. g3 {[%emt 00:00:49]} Kc6 {[%emt 00:00:58]} 52. Ke3 {[%emt
00:00:33]} Kc5 {[%emt 00:00:26]} 53. Rb7 {[%emt 00:00:45]} Rg2 {[%emt
00:00:15]} 54. Kd3 {[%emt 00:01:42]} h5 {[%emt 00:01:52]} 55. Ke4 {[%emt
00:01:13]} Kc4 {[%emt 00:01:27]} 56. Kf3 {[%emt 00:03:05]} Rh2 {[%emt
00:00:14]} 57. f5 {[%emt 00:01:53]} gxf5 {[%emt 00:00:46]} 58. Kf4 {[%emt
00:01:20]} Kc3 {[%emt 00:00:01]} 59. Kxf5 {[%emt 00:02:29]} Rg2 {[%emt
00:00:21]} 60. Rc7+ {[%emt 00:01:00]} Kd2 {[%emt 00:00:06]} 61. Rb7 {[%emt
00:00:31]} Kc1 {[%emt 00:00:07]} 62. Rc7+ {[%emt 00:00:30]} Rc2 {[%emt
00:00:11]} 0-1

[Event "IV Elllobregat Open Chess Tmnt"]
[Site "Sant Boi de Llobregat, Spain"]
[Date "2023.12.01"]
[Round "2.33"]
[White "Selbes, Tamer Tarik"]
[Black "Vaishali, Rameshbabu"]
[Result "0-1"]
[TimeControl "90min/40moves + 15min/end + 30sec from move 1"]
[WhiteFideId "6302513"]
[BlackFideId "5091756"]
[WhiteElo "2238"]
[BlackElo "2467"]

1. Nf3 {[%clk 01:30:38]} {[%emt 00:00:22]} Nf6 {[%clk 01:30:26]} {[%emt
00:00:35]} 2. g3 {[%clk 01:30:54]} {[%emt 00:00:13]} b6 {[%clk 01:29:25]}
{[%emt 00:01:32]} 3. Bg2 {[%clk 01:31:14]} {[%emt 00:00:08]} Bb7 {[%clk
01:29:52]} {[%emt 00:00:04]} 4. d4 {[%clk 01:30:01]} {[%emt 00:01:43]} g6
{[%clk 01:29:23]} {[%emt 00:00:59]} 5. c4 {[%clk 01:30:01]} {[%emt 00:00:30]}
Bg7 {[%clk 01:29:48]} {[%emt 00:00:06]} 6. O-O {[%clk 01:27:17]} {[%emt
00:03:13]} O-O {[%clk 01:29:36]} {[%emt 00:00:42]} 7. Nc3 {[%clk 01:26:14]}
{[%emt 00:01:33]} Ne4 {[%clk 01:25:01]} {[%emt 00:05:06]} 8. Qd3 {[%clk
01:24:17]} {[%emt 00:02:26]} Nxc3 {[%clk 01:23:06]} {[%emt 00:02:25]} 9. bxc3
{[%clk 01:22:17]} {[%emt 00:02:31]} Nc6 {[%clk 01:21:05]} {[%emt 00:02:31]} 10.
c5 {[%clk 01:19:44]} {[%emt 00:03:03]} Na5 {[%clk 01:15:04]} {[%emt 00:06:31]}
11. e4 {[%clk 01:10:36]} {[%emt 00:09:37]} bxc5 {[%clk 01:09:43]} {[%emt
00:05:51]} 12. Qb5 {[%clk 01:08:42]} {[%emt 00:02:24]} c6 {[%clk 01:09:46]}
{[%emt 00:00:27]} 13. Qxc5 {[%clk 01:08:56]} {[%emt 00:00:15]} d6 {[%clk
00:50:05]} {[%emt 00:20:12]} 14. Qa3 {[%clk 01:09:03]} {[%emt 00:00:23]} c5
{[%clk 00:45:00]} {[%emt 00:05:36]} 15. Re1 {[%clk 01:06:35]} {[%emt 00:02:57]}
cxd4 {[%clk 00:35:21]} {[%emt 00:10:09]} 16. cxd4 {[%clk 01:06:46]} {[%emt
00:00:18]} Nc4 {[%clk 00:34:52]} {[%emt 00:00:59]} 17. Qb4 {[%clk 00:58:55]}
{[%emt 00:08:20]} Ba6 {[%clk 00:29:54]} {[%emt 00:05:30]} 18. Bg5 {[%clk
00:52:54]} {[%emt 00:06:30]} Rb8 {[%clk 00:21:33]} {[%emt 00:08:51]} 19. Qa4
{[%clk 00:49:32]} {[%emt 00:03:51]} Bb5 {[%clk 00:21:53]} {[%emt 00:00:10]} 20.
Qxa7 {[%clk 00:41:36]} {[%emt 00:08:26]} Qc8 {[%clk 00:19:07]} {[%emt
00:03:17]} 21. Rab1 {[%clk 00:35:55]} {[%emt 00:06:11]} Rb7 {[%clk 00:12:14]}
{[%emt 00:07:24]} 22. Qxb7 {[%clk 00:36:16]} {[%emt 00:00:08]} Qxb7 {[%clk
00:12:41]} {[%emt 00:00:03]} 23. a4 {[%clk 00:36:42]} {[%emt 00:00:05]} h6
{[%clk 00:10:23]} {[%emt 00:02:48]} 24. Rxb5 {[%clk 00:33:25]} {[%emt
00:03:46]} Qa7 {[%clk 00:09:56]} {[%emt 00:00:57]} 25. Be3 {[%clk 00:32:45]}
{[%emt 00:01:10]} Qxa4 {[%clk 00:10:01]} {[%emt 00:00:25]} 26. Rb7 {[%clk
00:32:51]} {[%emt 00:00:23]} Nxe3 {[%clk 00:07:47]} {[%emt 00:02:44]} 27. fxe3
{[%clk 00:31:51]} {[%emt 00:01:30]} e6 {[%clk 00:05:27]} {[%emt 00:02:50]} 28.
Reb1 {[%clk 00:30:08]} {[%emt 00:02:12]} Qc2 {[%clk 00:05:03]} {[%emt
00:00:54]} 29. Ne1 {[%clk 00:25:59]} {[%emt 00:04:38]} Qd2 {[%clk 00:05:05]}
{[%emt 00:00:30]} 30. R7b3 {[%clk 00:26:20]} {[%emt 00:00:09]} Ra8 {[%clk
00:04:07]} {[%emt 00:01:28]} 31. e5 {[%clk 00:23:53]} {[%emt 00:02:57]} Ra2
{[%clk 00:03:45]} {[%emt 00:00:53]} 32. exd6 {[%clk 00:19:51]} {[%emt
00:04:33]} Qf2+ {[%clk 00:04:13]} {[%emt 00:00:02]} 33. Kh1 {[%clk 00:20:14]}
{[%emt 00:00:06]} Re2 {[%clk 00:04:39]} {[%emt 00:00:04]} 34. h3 {[%clk
00:19:18]} {[%emt 00:01:26]} Rxe1+ {[%clk 00:02:05]} {[%emt 00:03:04]} 35. Rxe1
{[%clk 00:19:44]} {[%emt 00:00:04]} Qxe1+ {[%clk 00:02:31]} {[%emt 00:00:04]}
36. Kh2 {[%clk 00:20:11]} {[%emt 00:00:03]} Bf6 {[%clk 00:02:53]} {[%emt
00:00:09]} 37. Rb8+ {[%clk 00:19:49]} {[%emt 00:00:52]} Kg7 {[%clk 00:03:17]}
{[%emt 00:00:06]} 38. d7 {[%clk 00:20:01]} {[%emt 00:00:18]} Qa5 {[%clk
00:03:32]} {[%emt 00:00:15]} 39. e4 {[%clk 00:19:28]} {[%emt 00:01:02]} Qc7
{[%clk 00:03:41]} {[%emt 00:00:21]} 0-1

[Event "IV Elllobregat Open Chess Tmnt"]
[Site "Sant Boi de Llobregat, Spain"]
[Date "2023.12.01"]
[Round "2.34"]
[White "Fernandez Guillen, Ernesto J."]
[Black "Karabalis, Harilos"]
[Result "1-0"]
[TimeControl "90min/40moves + 15min/end + 30sec from move 1"]
[WhiteFideId "3512428"]
[BlackFideId "4621808"]
[WhiteElo "2462"]
[BlackElo "2233"]

1. Nf3 Nf6 2. g3 g6 3. Bg2 Bg7 4. O-O {[%clk 01:17:55]} O-O {[%clk 01:30:44]} 5.
d4 {[%emt 24:09:58]} d6 6. c4 Nc6 7. d5 Nb8 8. Nc3 e5 9. e4 {[%clk 01:17:14]}
a5 {[%clk 01:32:07]} 10. Qc2 {[%emt 00:25:04]} Na6 11. a3 Nc5 12. Be3 Ng4 13.
Bxc5 {[%clk 01:00:02]} dxc5 {[%clk 01:26:15]} 14. Rad1 {[%emt 00:39:30]} Nh6 15.
Qd2 Bd7 16. Nxe5 Bxe5 17. Qxh6 f5 18. exf5 Bxf5 19. Qd2 Qf6 20. f4 {[%clk
00:33:23]} Bd4+ {[%clk 01:10:50]} 21. Kh1 {[%clk 00:19:00]} {[%emt 00:40:01]}
Rae8 {[%clk 00:57:35]} 22. Rfe1 {[%clk 00:15:42]} {[%emt 00:08:10]} h5 {[%clk
00:56:57]} 23. h4 {[%clk 00:07:08]} {[%emt 00:10:12]} Bg4 {[%clk 00:55:01]} 24.
Rc1 {[%emt 00:04:14]} Bf5 25. Kh2 Qg7 26. Rxe8 {[%clk 00:05:49]} Rxe8 {[%clk
00:51:34]} 27. Re1 {[%emt 00:10:23]} Rxe1 28. Qxe1 {[%clk 00:03:10]} Bxc3
{[%clk 00:46:50]} 29. bxc3 {[%emt 00:07:02]} Bd3 30. Qe3 Qxc3 31. f5 gxf5 32.
Qe8+ Kg7 33. Qe7+ Kh8 34. Qd8+ Kh7 35. Qxc7+ Kh8 36. Qc8+ Kh7 37. Qxb7+ Kh8 38.
Qb8+ Kh7 39. Qc7+ Kh8 40. d6 f4 41. d7 fxg3+ 42. Qxg3 {[%clk 00:03:41]} 1-0

[Event "IV Elllobregat Open Chess Tmnt"]
[Site "Sant Boi de Llobregat, Spain"]
[Date "2023.12.01"]
[Round "2.35"]
[White "Kairbekova, Amina"]
[Black "Garcia Ramos, Daniel"]
[Result "1/2-1/2"]
[TimeControl "90min/40moves + 15min/end + 30sec from move 1"]
[WhiteFideId "13712799"]
[BlackFideId "32010311"]
[WhiteElo "2228"]
[BlackElo "2461"]

1. e4 {[%clk 01:27:36]} {[%emt 00:03:24]} c6 {[%clk 01:29:24]} {[%emt
00:01:36]} 2. d4 {[%clk 01:27:56]} {[%emt 00:00:10]} d5 {[%clk 01:29:31]}
{[%emt 00:00:22]} 3. e5 {[%clk 01:28:16]} {[%emt 00:00:11]} Bf5 {[%clk
01:29:40]} {[%emt 00:00:20]} 4. Nf3 {[%clk 01:28:29]} {[%emt 00:00:18]} e6
{[%clk 01:29:53]} {[%emt 00:00:17]} 5. Be2 {[%clk 01:28:54]} {[%emt 00:00:05]}
Nd7 {[%clk 01:30:06]} {[%emt 00:00:17]} 6. O-O {[%clk 01:29:09]} {[%emt
00:00:16]} a6 {[%clk 01:30:25]} {[%emt 00:00:10]} 7. a4 {[%clk 01:29:24]}
{[%emt 00:00:15]} h6 {[%clk 01:28:26]} {[%emt 00:02:30]} 8. a5 {[%clk
01:29:46]} {[%emt 00:00:08]} Ne7 {[%clk 01:27:38]} {[%emt 00:01:18]} 9. b4
{[%clk 01:29:43]} {[%emt 00:00:33]} g5 {[%clk 01:20:47]} {[%emt 00:07:19]} 10.
Ne1 {[%clk 01:29:56]} {[%emt 00:00:19]} Rg8 {[%clk 01:13:36]} {[%emt 00:07:41]}
11. c3 {[%clk 01:25:04]} {[%emt 00:05:23]} Qc7 {[%clk 01:10:37]} {[%emt
00:03:29]} 12. Na3 {[%clk 01:23:20]} {[%emt 00:02:14]} f6 {[%clk 01:00:17]}
{[%emt 00:10:50]} 13. Bh5+ {[%clk 01:09:20]} {[%emt 00:14:31]} Kd8 {[%clk
00:49:10]} {[%emt 00:11:36]} 14. f4 {[%clk 01:08:02]} {[%emt 00:01:47]} gxf4
{[%clk 00:39:05]} {[%emt 00:10:36]} 15. Bxf4 {[%clk 01:01:52]} {[%emt
00:06:40]} fxe5 {[%clk 00:26:39]} {[%emt 00:12:56]} 16. dxe5 {[%clk 01:01:35]}
{[%emt 00:00:47]} c5 {[%clk 00:27:01]} {[%emt 00:00:08]} 17. Nf3 {[%clk
00:57:46]} {[%emt 00:04:20]} Bg7 {[%clk 00:16:58]} {[%emt 00:10:32]} 18. Kh1
{[%clk 00:54:30]} {[%emt 00:03:45]} Be4 {[%clk 00:15:45]} {[%emt 00:01:44]} 19.
bxc5 {[%clk 00:49:21]} {[%emt 00:05:39]} Bxe5 {[%clk 00:15:21]} {[%emt
00:00:53]} 20. Bxe5 {[%clk 00:38:24]} {[%emt 00:11:27]} Nxe5 {[%clk 00:15:45]}
{[%emt 00:00:07]} 21. Nc2 {[%clk 00:38:25]} {[%emt 00:00:29]} Nf5 {[%clk
00:06:27]} {[%emt 00:09:48]} 22. Ncd4 {[%clk 00:38:09]} {[%emt 00:00:46]} Nxd4
{[%clk 00:06:23]} {[%emt 00:00:33]} 23. Qxd4 {[%clk 00:31:34]} {[%emt
00:07:05]} Qg7 {[%clk 00:06:32]} {[%emt 00:00:21]} 24. Ra2 {[%clk 00:30:09]}
{[%emt 00:01:55]} Nc4 {[%clk 00:02:33]} {[%emt 00:04:28]} 25. Qf2 {[%clk
00:24:11]} {[%emt 00:06:30]} Kd7 {[%clk 00:01:15]} {[%emt 00:01:47]} 26. Nd4
{[%clk 00:19:45]} {[%emt 00:04:57]} Raf8 {[%clk 00:00:56]} {[%emt 00:00:49]} 27.
Bf3 {[%clk 00:19:58]} {[%emt 00:00:17]} e5 {[%clk 00:00:49]} {[%emt 00:00:37]}
28. c6+ {[%clk 00:20:12]} {[%emt 00:00:16]} bxc6 {[%clk 00:00:55]} {[%emt
00:00:24]} 29. Nb3 {[%clk 00:20:12]} {[%emt 00:00:30]} Bxf3 {[%clk 00:00:55]}
{[%emt 00:00:30]} 30. gxf3 {[%clk 00:19:16]} {[%emt 00:01:25]} Kc8 {[%clk
00:01:08]} {[%emt 00:00:17]} 31. Nc5 {[%clk 00:16:33]} {[%emt 00:03:12]} Qa7
{[%clk 00:00:50]} {[%emt 00:00:49]} 32. Rb1 {[%clk 00:14:59]} {[%emt 00:02:04]}
e4 {[%clk 00:01:07]} {[%emt 00:00:14]} 33. Rb7 {[%clk 00:08:45]} {[%emt
00:06:44]} Qxb7 {[%clk 00:01:31]} {[%emt 00:00:05]} 34. Nxb7 {[%clk 00:09:10]}
{[%emt 00:00:04]} Rxf3 {[%clk 00:01:23]} {[%emt 00:00:38]} 35. Qe2 {[%clk
00:09:35]} {[%emt 00:00:05]} Kxb7 {[%clk 00:01:42]} {[%emt 00:00:11]} 36. Ra1
{[%clk 00:09:59]} {[%emt 00:00:06]} Kc7 {[%clk 00:01:16]} {[%emt 00:00:56]} 37.
Qd1 {[%clk 00:07:12]} {[%emt 00:03:17]} Rgf8 {[%clk 00:01:24]} {[%emt
00:00:22]} 38. Qd4 {[%clk 00:06:39]} {[%emt 00:01:03]} Kd6 {[%clk 00:00:36]}
{[%emt 00:01:18]} 39. Rg1 {[%clk 00:06:46]} {[%emt 00:00:23]} Rf1 {[%clk
00:00:47]} {[%emt 00:00:19]} 40. Qg7 {[%clk 00:20:47]} {[%emt 00:01:29]} R8f6
{[%clk 00:15:33]} {[%emt 00:00:44]} 41. Qg3+ {[%clk 00:18:21]} {[%emt
00:02:57]} Ne5 {[%clk 00:14:10]} {[%emt 00:01:52]} 42. Rxf1 {[%clk 00:17:21]}
{[%emt 00:01:30]} Rxf1+ {[%clk 00:14:33]} {[%emt 00:00:08]} 43. Kg2 {[%clk
00:17:49]} {[%emt 00:00:02]} Rf6 {[%clk 00:14:10]} {[%emt 00:00:52]} 44. Qh4
{[%clk 00:17:25]} {[%emt 00:00:55]} Ke7 {[%clk 00:10:16]} {[%emt 00:04:22]} 45.
Qh3 {[%clk 00:16:31]} {[%emt 00:01:26]} Nd7 {[%clk 00:07:39]} {[%emt 00:03:06]}
46. Qe3 {[%clk 00:15:38]} {[%emt 00:01:23]} Re6 {[%clk 00:07:39]} {[%emt
00:00:30]} 47. Kf2 {[%clk 00:15:40]} {[%emt 00:00:28]} c5 {[%clk 00:08:00]}
{[%emt 00:00:09]} 48. Ke2 {[%clk 00:16:01]} {[%emt 00:00:08]} Kd6 {[%clk
00:07:51]} {[%emt 00:00:38]} 49. Qf4+ {[%clk 00:16:11]} {[%emt 00:00:21]} Kc6
{[%clk 00:06:31]} {[%emt 00:01:49]} 50. Qf7 {[%clk 00:16:32]} {[%emt 00:00:11]}
Kd6 {[%clk 00:04:46]} {[%emt 00:02:15]} 51. Qf4+ {[%clk 00:16:32]} {[%emt
00:00:30]} Ke7 {[%clk 00:04:45]} {[%emt 00:00:31]} 52. Qe3 {[%clk 00:16:00]}
{[%emt 00:01:03]} Rf6 {[%clk 00:04:35]} {[%emt 00:00:39]} 53. Qg1 {[%clk
00:13:51]} {[%emt 00:02:39]} Kd6 {[%clk 00:04:40]} {[%emt 00:00:25]} 54. Qg3+
{[%clk 00:14:00]} {[%emt 00:00:21]} Kc6 {[%clk 00:04:45]} {[%emt 00:00:23]} 55.
Qg8 {[%clk 00:14:21]} {[%emt 00:00:11]} Kd6 {[%clk 00:03:34]} {[%emt 00:01:42]}
56. Qa8 {[%clk 00:13:11]} {[%emt 00:01:39]} Ke5 {[%clk 00:01:35]} {[%emt
00:02:30]} 57. Qe8+ {[%clk 00:13:17]} {[%emt 00:00:23]} Kd6 {[%clk 00:02:04]}
{[%emt 00:00:01]} 58. Qa8 {[%clk 00:13:41]} {[%emt 00:00:06]} Ke5 {[%clk
00:00:32]} {[%emt 00:02:02]} 59. Qe8+ {[%clk 00:14:05]} {[%emt 00:00:06]} Kd6
{[%clk 00:00:59]} {[%emt 00:00:03]} 60. Qa8 {[%clk 00:14:22]} {[%emt 00:00:13]}
1/2-1/2